Cogmind - Beta 12 X4 @@@ ROGUE MODE // 2022.09.23 @ 10:14:59 Player: btmk16 Result: Escaped! Performance ------------- Evolutions (9) 4500 Regions Visited (28) 5600 Robots Destroyed (308) 1540 Value Destroyed (10224) 10224 Prototype IDs (47) 940 Alien Tech Used (2) 400 Bonus (12026) 12026 TOTAL SCORE: 35230 Bonus ------- High Alert Combat Kills 616 Follower Combat Kills 1050 Entered DSFs 500 Met Zhirov 300 Met Warlord at Base 500 MAIN.C Attacked Warlord 500 Warlord Defense Kills 310 Hacked Protovariant 500 Met Warlord at Research 2000 Acquired SGEMP 2000 Delivered SGEMP 2000 Win 3000 Friendly Fire -1250 Cogmind --------- Core Integrity 1518/1600 Matter 295/300 Energy 144/147 System Corruption 0% Temperature Cool (7) Movement Hovering (107) Location To Epsilon Eridani Parts ------- > --- POWER (2) -------- Neutrino-Ion Core > --- PROPULSION (8) --- Hovering Gravjet-Antigrav Exoskeleton > --- UTILITY (12) ----- Armored Scrap Engine Experimental Armor Integrity Analyzer Experimental Armor Integrity Analyzer Centrium Medium Armor Plating Experimental Hacking Suite Improved System Guard > --- WEAPON (3) ------- High-powered Charged Gamma Construct/G Plasma Sword Plasma Lance > --- INVENTORY (5) ---- 2N-1CE's Frost Array Centrium Medium Armor Plating Point Singularity Launcher Peak State ------------ > --- POWER ------------ Neutrino-Ion Core > --- PROPULSION ------- Hovering Gravjet-Antigrav Exoskeleton Improved Antigrav System Improved Antigrav System > --- UTILITY ---------- Armored Scrap Engine Advanced Heat Sink Coolant Network Machine Analyzer Advanced Cloaking Device Centrium Medium Armor Plating Advanced Hacking Suite Experimental Hacking Suite > --- WEAPON ----------- Energy Nova Construct/C High-powered Charged Gamma Construct/G Plasma Lance > --- INVENTORY -------- 2N-1CE's Frost Array Centrium Medium Armor Plating Point Singularity Launcher SGEMP Prototype [Rating: 179] Favorites ----------- Power Constructs Engine Heavy Ion Engine Power Core Constructs Propulsion Light Treads Treads Light Treads Leg Aluminum Leg Wheel Compact Wheel Hover Unit Constructs Flight Unit Improved Cesium-ion Thruster Utility Improved Heat Sink Device Improved Heat Sink Storage Large Storage Unit Processor Machine Analyzer Hackware Hacking Suite Protection Light Armor Plating Weapon Advanced Beam Cannon Energy Gun Constructs Energy Cannon Advanced Beam Cannon Ballistic Gun Flak Gun Ballistic Cannon Light Cannon Launcher Rocket Launcher Impact Weapon Heavy Hammer Slashing Weapon Molecular Scythe Piercing Weapon Plasma Lance Build | -11 -10 -10 -9 -9 -8 -7 -7 -7 -6 -6 -5 -5 -5 -5 -4 -4 -4 -4 -4 -4 -4 -3 -3 -3 -3 -2 -2 -1 ------- Run | Scr Mat Min Mat Min Mat Fac Was Fac Fac DSF Fac Upp Upp Zhi Pro Fac Was Fac Upp Upp War Pro Res Arm Lab Res Tes Acc Slots Evolved 18 | . . . 2 . 2 2 . . 2 . 2 . . . . 2 . . . . . . 2 . . 2 . 2 Power 1 | . . . . . . . . . 1 . . . . . . . . . . . . . . . . . . . Propulsion 6 | . . . 1 . . 1 . . 1 . 1 . . . . . . . . . . . . . . 2 . . Utility 10 | . . . 1 . 2 1 . . . . 1 . . . . 1 . . . . . . 2 . . . . 2 Weapon 1 | . . . . . . . . . . . . . . . . 1 . . . . . . . . . . . . Parts Attached 233 | 7 14 3 45 3 22 14 . 23 . 1 11 1 2 6 1 4 2 5 3 8 7 . 6 8 . 18 16 3 Power 8 | 2 2 1 2 . . 1 . . . . . . . . . . . . . . . . . . . . . . Engine 8 | 2 2 1 2 . . 1 . . . . . . . . . . . . . . . . . . . . . . Core . | . . . . . . . . . . . . . . . . . . . . . . . . . . . . . Reactor . | . . . . . . . . . . . . . . . . . . . . . . . . . . . . . Propulsion 43 | 2 5 1 10 3 4 4 . 10 . . . . . 2 . . . . . . . . . . . . 2 . Treads 25 | 2 5 1 10 3 4 . . . . . . . . . . . . . . . . . . . . . . . Leg 2 | . . . . . . . . 2 . . . . . . . . . . . . . . . . . . . . Wheel 4 | . . . . . . . . 4 . . . . . . . . . . . . . . . . . . . . Hover 6 | . . . . . . 2 . . . . . . . 2 . . . . . . . . . . . . 2 . Flight 6 | . . . . . . 2 . 4 . . . . . . . . . . . . . . . . . . . . Utility 99 | 1 2 1 9 . 5 5 . 7 . . 4 . . 3 . 2 2 5 2 7 5 . 5 8 . 13 10 3 Device 46 | . . 1 3 . 1 4 . 3 . . . . . 1 . 2 . 3 1 4 3 . 3 6 . 4 5 2 Storage 7 | 1 . . 1 . . . . . . . . . . . . . . . . . . . . . . 5 . . Processor 8 | . . . . . 2 . . . . . . . . . . . . . 1 . 1 . . . . 1 2 1 Hackware 10 | . . . . . 1 . . 1 . . 3 . . 1 . . . . . 1 . . 1 . . 2 . . Protection 28 | . 2 . 5 . 1 1 . 3 . . 1 . . 1 . . 2 2 . 2 1 . 1 2 . 1 3 . Artifact . | . . . . . . . . . . . . . . . . . . . . . . . . . . . . . Weapon 83 | 2 5 . 24 . 13 4 . 6 . 1 7 1 2 1 1 2 . . 1 1 2 . 1 . . 5 4 . Energy Gun 8 | 2 2 . 1 . . . . 2 . . . . . . . . . . . . . . . . . . 1 . Energy Cannon 27 | . 1 . 15 . 6 4 . . . . . . . . . . . . . . . . . . . 1 . . Ballistic Gun 1 | . . . . . . . . 1 . . . . . . . . . . . . . . . . . . . . Ballistic Cannon 1 | . 1 . . . . . . . . . . . . . . . . . . . . . . . . . . . Launcher 23 | . . . 8 . 6 . . 1 . 1 2 1 1 . 1 . . . 1 . . . . . . . 1 . Special Weapon . | . . . . . . . . . . . . . . . . . . . . . . . . . . . . . Impact Weapon 2 | . 1 . . . 1 . . . . . . . . . . . . . . . . . . . . . . . Slashing Weapon 12 | . . . . . . . . . . . 4 . 1 1 . 2 . . . 1 . . 1 . . 1 1 . Piercing Weapon 9 | . . . . . . . . 2 . . 1 . . . . . . . . . 2 . . . . 3 1 . Special Melee Weapon . | . . . . . . . . . . . . . . . . . . . . . . . . . . . . . Unidentified Prototypes 25 | . . . 3 . . . . 2 . . 1 . . 3 . 1 . 1 . 1 4 . . 1 . 4 4 . Corrupted Parts 3 | . 1 . . . . . . 1 . . . . . . . . . . . 1 . . . . . . . . System Corruption 14 | . 6 . . . . . . 4 . . . . . . . . . . . 4 . . . . . . . . Parts Lost 76 | . 2 . . 2 14 5 . 7 . 2 . . . . . . . 1 3 9 . . 3 12 . 1 11 4 Power 6 | . . . . . 1 1 . . . . . . . . . . . . . 2 . . . . . . 2 . Propulsion 15 | . . . . 2 6 3 . 3 . . . . . . . . . . . . . . . 1 . . . . Utility 36 | . . . . . 5 . . 4 . . . . . . . . . 1 2 4 . . 2 8 . 1 6 3 Weapon 19 | . 2 . . . 2 1 . . . 2 . . . . . . . . 1 3 . . 1 3 . . 3 1 Highest Loss Streak 13 | . 1 . . 1 13 3 . 3 . 2 . . . . . . . 1 2 8 . . 2 5 . 1 7 2 To Critical Strikes 5 | . . . . . 1 . . . . . . . . . . . . . . 2 . . . 2 . . . . Average Slot Usage (%) 77 | . 97 100 99 99 91 58 38 64 46 42 48 52 50 58 70 69 73 69 60 57 57 57 57 46 33 52 52 48 Engine 6 | . 14 14 11 11 8 5 . 2 6 6 4 . . . . . . . . . 7 1 . . . . . . Reactor 1 | . . . . . . . . 4 . . . . . . 5 5 5 5 2 . . 2 4 4 4 4 4 . Treads 16 | . 28 28 32 32 24 . . . . . . . . . . . . . . 5 2 . 1 2 4 . . . Hover 1 | . . . . . . 14 . . . . 2 5 5 11 17 15 15 7 . . . . . . . . 3 4 Device 13 | . . 11 16 22 15 18 23 11 6 6 5 5 5 8 11 13 11 12 14 13 10 10 11 15 14 14 13 10 Storage 6 | . 14 14 11 11 8 . . . . . . . . . . . . . . . . . . . . 11 2 . Processor 2 | . . . . . 15 . . . . . . . . . . . . . 2 5 8 10 9 7 4 4 3 11 Hackware 5 | . . . . . . 7 7 11 13 13 16 17 17 17 17 15 15 15 15 10 10 10 10 4 4 5 7 4 Protection 4 | . 13 2 5 . . . . 3 . . 4 5 3 2 5 5 8 7 . 2 2 5 2 2 . . 3 4 Energy Gun 1 | . 20 . . . . . . . . . . . . . . . . . 4 2 . . . . . . 1 1 Energy Cannon 9 | . . 14 21 22 13 5 . 2 6 3 . . . . . . . . 5 2 . 5 4 . . 4 5 . Ballistic Cannon 1 | . 4 14 . . . . . 1 . . . 4 5 5 5 5 5 5 . 4 1 5 2 2 . . . . Naked Turns 2 | . . . . . 2 . . . . . . . . . . . . . . . . . . . . . . . Heaviest Build 78 | 14 19 21 41 38 44 27 3 41 20 22 51 51 51 40 40 45 56 56 56 59 38 78 69 69 29 74 73 32 Greatest Support 202 | 40 40 42 62 65 62 29 4 48 48 48 61 61 61 83 83 83 83 142 142 101 137 138 202 202 80 189 189 122 Greatest Overweight (x) 17 | . . . . . 8 1 . 8 . . . . . . . . . . 17 . . . . . . . . . Average Overweight (x) . | . . . . . . . . 1 . . . . . . . . . . . . . . . . . . . . Largest Inventory Capacity 15 | 8 8 8 15 15 15 5 5 5 5 5 5 5 5 5 5 5 5 5 5 5 5 5 5 5 5 5 5 5 Average Capacity 9 | 7 8 8 14 15 14 5 5 5 5 5 5 5 5 5 5 5 5 5 5 5 5 5 5 5 5 5 5 5 Most Carried 15 | 6 8 8 15 15 15 5 5 5 5 5 5 5 5 5 5 5 5 5 5 5 5 5 5 5 4 5 5 3 Average Carried 8 | 3 7 7 14 14 13 3 3 4 5 5 4 5 5 4 5 5 5 4 5 4 4 5 3 4 4 4 4 3 Final Capacity 15 | 8 8 8 15 15 5 5 5 5 5 5 5 5 5 5 5 5 5 5 5 5 5 5 5 5 5 5 5 5 Final Carried 15 | 6 8 8 15 14 5 3 5 5 5 5 5 5 5 5 5 5 5 5 5 4 5 5 5 4 4 5 5 3 Scrap Engine Consumption 403 | . . . . . . 6 7 28 . 2 22 2 3 2 3 4 25 54 11 9 41 3 26 25 . 87 42 1 Constructs Created 17 | . . . . . . 1 . 4 . . 1 . . . . . 1 . 1 . 3 . 1 . . 2 1 2 Constructs Modified 113 | . . . . . . . . 8 . . 12 2 . 3 . . . 4 15 6 4 11 7 14 . 12 14 1 Class Distribution -------------------- 63% | Mutant 23% | Hacker-Construct 9% | Hacker-Mutant Dominant Class ---------------- Mutant | -10/Materials Mutant | -10/Mines Mutant | -9/Materials Mutant | -9/Mines Scavenger-Mutant | -8/Materials Mutant | -7/Factory Mutant | -7/Waste Hacker-Mutant | -7/Factory Hacker-Mutant | -6/Factory Hacker-Mutant | -6/DSF Hacker-Mutant | -5/Factory Hacker-Construct | -5/Upper Caves Hacker-Construct | -5/Upper Caves Hacker-Construct | -5/Zhirov Hacker-Construct | -4/Proximity Caves Hacker-Construct | -4/Factory Hacker-Construct | -4/Waste Hacker-Construct | -4/Factory Hacker-Construct | -4/Upper Caves Hacker-Construct | -4/Upper Caves Hacker-Mutant | -4/Warlord Hacker-Construct | -3/Proximity Caves Hacker-Construct | -3/Research Mutant | -3/Armory Mutant | -3/Lab Mutant | -2/Research Hacker-Construct | -2/Testing Mutant | -1/Access Resources | -11 -10 -10 -9 -9 -8 -7 -7 -7 -6 -6 -5 -5 -5 -5 -4 -4 -4 -4 -4 -4 -4 -3 -3 -3 -3 -2 -2 -1 ----------- Run | Scr Mat Min Mat Min Mat Fac Was Fac Fac DSF Fac Upp Upp Zhi Pro Fac Was Fac Upp Upp War Pro Res Arm Lab Res Tes Acc Matter Collected 5735 | 220 407 190 809 65 70 327 . 450 . . 210 43 112 154 . 61 78 64 305 650 95 42 182 407 . 242 522 30 Remotely 191 | . . . . . . 191 . . . . . . . . . . . . . . . . . . . . . . Salvage Created 13785 | 60 787 289 4513 155 645 325 . 602 . . 264 132 164 227 85 106 . 471 443 1268 335 725 575 687 . 232 695 . Parts 688 | . 60 18 273 6 34 17 . 32 . . 12 3 6 . 4 2 . 16 20 56 13 18 25 34 . 6 33 . Haulers Intercepted 14 | . 2 . 6 . . 1 . 1 . . 2 . . . . . . . . 1 . . . . . . 1 . Recyclers Shooed 10 | . 1 1 4 . 1 . . 2 . . . . . . . 1 . . . . . . . . . . . . Parts Field Recycled . | . . . . . . . . . . . . . . . . . . . . . . . . . . . . . Retrieved Matter . | . . . . . . . . . . . . . . . . . . . . . . . . . . . . . Parts Self-Destructed 77 | . . . . . . . . . . . . 3 4 . 1 . . . 19 42 . 8 . . . . . . Prevented 18 | . . . . . . . . . . . . . . . . . . . 4 10 . 4 . . . . . . Kills | -11 -10 -10 -9 -9 -8 -7 -7 -7 -6 -6 -5 -5 -5 -5 -4 -4 -4 -4 -4 -4 -4 -3 -3 -3 -3 -2 -2 -1 ------- Run | Scr Mat Min Mat Min Mat Fac Was Fac Fac DSF Fac Upp Upp Zhi Pro Fac Was Fac Upp Upp War Pro Res Arm Lab Res Tes Acc Combat Hostiles Destroyed 207 | . 17 8 50 7 20 4 . 10 . . 4 4 7 . 1 . . 3 9 21 2 11 7 9 . 3 10 . Melee 10 | . . . . . . . . 2 . . . . . . 1 . . . . 2 . . . 1 . . 4 . Guns 24 | . 15 . . . . . . 2 . . . . . . . . . . 3 4 . . . . . . . . Cannons 110 | . 2 8 33 7 11 4 . 6 . . . . 1 . . . . 3 1 13 . 2 3 8 . 3 5 . AOE 55 | . . . 17 . 8 . . . . . 4 4 6 . . . . . 4 . 2 8 1 . . . 1 . Classes Destroyed 24 | 1 7 . 6 2 1 . . 1 . . . . . . . . . . 1 1 . . 1 1 . . 2 . Worker 57 | . 1 . 52 . 4 . . . . . . . . . . . . . . . . . . . . . . . Builder 21 | . . . 19 . 1 . . . . . . . . . . . . . . . . . . . . . 1 . Tunneler 2 | . 1 . . 1 . . . . . . . . . . . . . . . . . . . . . . . . Hauler 14 | . 2 . 6 . . 1 . 1 . . 2 . . . . . . . . 1 . . . . . . 1 . Recycler 23 | 1 . . 15 . . 1 . 2 . . . . . . . 1 . 2 . . . . . . . . 1 . Mechanic 2 | . . . 2 . . . . . . . . . . . . . . . . . . . . . . . . . Operator 9 | . 2 . 2 . . . . 2 . . 1 . . . . . . . . . . . 1 . . . 1 . Watcher 5 | . 1 . 4 . . . . . . . . . . . . . . . . . . . . . . . . . Swarmer 51 | . 6 . 6 . 7 2 . 4 . . 4 2 5 . . . . . 5 9 . 1 . . . . . . Saboteur 1 | . . . . . . . . . . . . . . . . . . . . . . . . 1 . . . . Grunt 86 | . 11 8 28 3 6 . . 3 . . . . 1 . . . . 2 2 9 1 8 . 2 . 1 1 . Brawler 8 | . . . 3 . 1 . . . . . . . . . . . . . . . . 1 . 3 . . . . Duelist 9 | . . . 2 . 1 1 . . . . . 2 1 . . . . . . . . . . . . . 2 . Protector 4 | . . . 3 . 1 . . . . . . . . . . . . . . . . . . . . . . . Sentry 20 | . . . 8 . 3 1 . 2 . . . . . . 1 . . . . 1 . 1 . 1 . 2 . . Demolisher 2 | . . . . 1 . . . . . . . . . . . . . . . . . . . 1 . . . . Specialist 4 | . . . . . . . . . . . . . . . . . . . . 2 . . 2 . . . . . Hunter 6 | . . . . . 1 . . . . . . . . . . . . . . . 1 . 4 . . . . . Programmer 8 | . . . . . . . . 1 . . . . . . . . . 1 1 . . . . 1 . . 4 . Heavy 1 | . . . . . . . . . . . . . . . . . . . . . . . 1 . . . . . Striker 2 | . . . . . . . . . . . . . . . . . . . . . . . . . . . 2 . Alpha 7 1 | . . . . . . . . . . . . . . . . . . . . . . . . . . . 1 . Assembled 3 | . . . . 3 . . . . . . . . . . . . . . . . . . . . . . . . Thug 3 | . . . . . . . . . . . . . . . . . . . . . 3 . . . . . . . Butcher 1 | . . . . . . . . . . . . . . . . . . . 1 . . . . . . . . . Mutant 1 | . . . . . . . . . . . . . . . . . . . 1 . . . . . . . . . Sapper 1 | . . . . . . . . . . . . . . . . . . . . . 1 . . . . . . . Best Kill Streak 9 | 1 3 2 6 3 7 3 . 4 . . 4 4 4 . 1 1 . 2 3 9 1 8 4 5 . 1 3 . Combat Bots Only 9 | . 3 2 5 3 4 3 . 4 . . 4 4 4 . 1 . . 1 3 9 1 8 4 5 . 1 3 . Max Kills in Single Turn 4 | 1 1 1 4 1 2 1 . 1 . . 2 3 2 . 1 1 . 1 1 1 4 4 1 1 . 1 1 . Gunslinging . | . . . . . . . . . . . . . . . . . . . . . . . . . . . . . Exploded 4 | . . . 3 . 2 . . . . . 2 3 2 . . . . . 1 . 1 4 1 . . . 1 . Melee 1 | . . . . . . . . 1 . . . . . . 1 . . . . 1 . . . 1 . . 1 . Uniques/NPCs Destroyed . | . . . . . . . . . . . . . . . . . . . . . . . . . . . . . Combat | -11 -10 -10 -9 -9 -8 -7 -7 -7 -6 -6 -5 -5 -5 -5 -4 -4 -4 -4 -4 -4 -4 -3 -3 -3 -3 -2 -2 -1 -------- Run | Scr Mat Min Mat Min Mat Fac Was Fac Fac DSF Fac Upp Upp Zhi Pro Fac Was Fac Upp Upp War Pro Res Arm Lab Res Tes Acc Damage Taken 26469 | 8 497 435 769 219 1946 770 . 1519 . 312 403 218 712 . 121 . . 445 860 3094 90 600 1067 4749 . 432 6573 630 Core 3328 | . 101 48 72 27 489 227 . 299 . 55 60 14 110 . . . . 29 128 226 . 72 60 511 . 76 642 82 Absorbed by Shields 53 | . . . . . . . . 24 . 29 . . . . . . . . . . . . . . . . . . Redirected to Shielding 219 | . 36 33 . . . . . 108 . . . . . . 42 . . . . . . . . . . . . . Regen/Repaired (Parts) 9879 | . . . . . . 15 . 582 . . 227 69 100 81 100 . 154 414 131 466 1152 237 499 2103 . 893 1880 776 Core Remaining (%) 61 | 100 . 40 . 75 11 . . 24 . 93 . . . . 81 . . . . . . 60 . . 50 . 50 94 Volleys Fired 809 | 4 64 28 247 16 35 20 . 55 . . 3 5 21 . 4 2 6 23 31 60 3 22 36 65 . 10 47 2 Largest 3 | 2 2 2 2 2 2 2 . 2 . . 1 1 1 . 2 1 1 2 3 2 1 2 2 1 . 2 2 1 Hottest 244 | 80 80 95 136 136 160 160 . 192 . . 33 89 89 . 122 89 89 119 129 134 64 128 128 90 . 194 244 79 Shots Fired 1273 | 8 101 50 491 33 63 28 . 62 . . 3 5 21 . 5 2 6 32 51 85 3 26 42 62 . 14 78 2 Gun 180 | 8 93 . . . . . . 22 . . . . . . . . . 4 23 22 . . . . . . 6 2 Cannon 1030 | . 8 50 471 33 52 28 . 40 . . . 2 5 . 4 2 6 28 24 63 3 26 42 62 . 14 67 . Launcher 63 | . . . 20 . 11 . . . . . 3 3 16 . 1 . . . 4 . . . . . . . 5 . Special . | . . . . . . . . . . . . . . . . . . . . . . . . . . . . . Kinetic 255 | . 8 28 2 . . . . 17 . . . 2 5 . 4 2 6 23 28 61 . . . 44 . . 25 . Thermal 738 | . . 22 469 33 52 28 . 45 . . . . . . . . . . . 10 . . . 18 . 14 47 . Explosive 63 | . . . 20 . 11 . . . . . 3 3 16 . 1 . . . 4 . . . . . . . 5 . Electromagnetic 203 | 8 93 . . . . . . . . . . . . . . . . 9 19 14 . 22 35 . . . 1 2 Entropic 14 | . . . . . . . . . . . . . . . . . . . . . 3 4 7 . . . . . Robot Hit Streak 15 | 3 11 6 13 15 5 5 . 10 . . 2 4 3 . 4 6 9 5 12 9 3 7 11 7 . 9 6 . Robot Miss Streak 7 | 4 4 4 6 1 3 5 . 7 . . 1 1 7 . . . 2 5 4 5 3 4 5 2 . 1 6 . Penetration Max 1 | . . . . . . . . . . . . 1 . . . . . . . 1 . . . . . . . . Secondary Targets 3 | . 3 . . . . . . . . . . . . . . . . . . . . . . . . . . . Max Gunslinging Chain 1 | . 1 . . . . . . . . . . . . . . . . . . . . . . . . . . . Shots Hit Robots 800 | 4 62 31 275 22 42 16 . 44 . . 8 4 6 6 4 2 4 16 33 55 2 22 32 42 . 13 54 1 Core Hits 541 | 2 29 13 175 10 45 8 . 30 . . 14 7 28 2 4 1 . 6 14 29 19 25 20 20 . 7 32 1 Critical Kills 18 | . . . 2 . 1 . . 2 . . . . . . . . . . 3 10 . . . . . . . . Critical Parts Destroyed 35 | . . . . . . . . 4 . . . 1 . . . . . 1 8 10 5 4 2 . . . . . Critical Strikes 64 | . 2 1 2 . 1 . . 6 . . 2 1 . . . . . 2 11 20 5 5 5 . . . 1 . Meltdown 3 | . . . 2 . 1 . . . . . . . . . . . . . . . . . . . . . . . Destroy 39 | . . . . . . . . 6 . . . 1 . . . . . 1 11 20 . . . . . . . . Blast 1 | . . 1 . . . . . . . . . . . . . . . . . . . . . . . . . . Corrupt 6 | . 2 . . . . . . . . . . . . . . . . . . . . 1 3 . . . . . Sever 2 | . . . . . . . . . . . 1 . . . . . . 1 . . . . . . . . . . Impale 2 | . . . . . . . . . . . 1 . . . . . . . . . . . . . . . 1 . Detonate 11 | . . . . . . . . . . . . . . . . . . . . . 5 4 2 . . . . . Melee Attacks 109 | . . . . . 9 . . 8 . . 14 . 1 6 4 . . 3 6 9 1 . 5 2 . 3 32 6 Impact 9 | . . . . . 9 . . . . . . . . . . . . . . . . . . . . . . . Slashing 54 | . . . . . . . . . . . 11 . 1 6 4 . . 3 6 9 1 . 5 2 . . . 6 Piercing 46 | . . . . . . . . 8 . . 3 . . . . . . . . . . . . . . 3 32 . Sneak Attacks 9 | . . . . . . . . 1 . . 3 . . . . . . 1 . . . . 2 . . . 2 . Combat Hostiles 1 | . . . . . . . . . . . . . . . . . . . . . . . 1 . . . . . Follow-up Attacks 1 | . . . . . . . . . . . 1 . . . . . . . . . . . . . . . . . Damage Inflicted 29964 | 75 1018 594 7553 501 1964 436 . 1063 . . 847 438 1132 560 356 72 160 633 1028 1581 1658 1328 1319 2025 . 491 3089 43 Guns 1923 | 53 788 . . . . . . 311 . . . . . . . . . 26 354 235 . . . . . . 156 . Cannons 15877 | . 127 591 5607 488 748 436 . 533 . . . 97 96 . 30 72 160 402 413 1048 97 480 910 1883 . 491 1168 . Explosions 8509 | 22 69 . 1818 . 1014 . . . . . 370 341 1036 . 208 . . . 261 . 1561 848 169 84 . . 708 . Melee 3306 | . . . . . 192 . . 219 . . 477 . . 560 118 . . 205 . 291 . . 240 58 . . 903 43 Ramming 349 | . 34 3 128 13 10 . . . . . . . . . . . . . . 7 . . . . . . 154 . Kinetic 4490 | . 127 318 35 . . . . 266 . . . 97 96 . 30 72 160 304 479 924 . . . 1147 . . 435 . Thermal 13038 | 22 69 273 5572 488 748 436 . 578 . . . . . . . . . . . 110 1561 848 169 820 . 491 853 . Explosive 5756 | . . . 1818 . 1014 . . . . . 370 341 1036 . 208 . . . 261 . . . . . . . 708 . Electromagnetic 2727 | 53 788 . . . . . . . . . . . . . . . . 124 288 249 . 378 811 . . . 36 . Impact 192 | . . . . . 192 . . . . . . . . . . . . . . . . . . . . . . . Slashing 1923 | . . . . . . . . . . . 408 . . 560 118 . . 205 . 291 . . 240 58 . . . 43 Piercing 1191 | . . . . . . . . 219 . . 69 . . . . . . . . . . . . . . . 903 . Entropic 298 | . . . . . . . . . . . . . . . . . . . . . 97 102 99 . . . . . Highest Corruption 25 | . 6 6 3 3 6 . 8 14 . . . . . . . . . . 2 5 5 . . 25 25 . 15 . Average Corruption 5 | . 6 6 2 3 5 . 8 7 . . . . . . . . . . 2 3 5 . . 17 25 . 10 . Corruption Purged 7 | . . . . . . . . 5 . . . . . . . . . . . 2 . . . . . . . . Corruption Blocked 4 | . . . . . . . . . . . . . . . . . . . . . . . . . . 4 . . Effects 290 | . 19 22 96 22 3 . 5 50 . . . . . . . . . . 3 6 1 . . 35 11 . 17 . Message Errors 78 | . 8 5 31 5 3 . 2 9 . . . . . . . . . . . 2 . . . 5 3 . 5 . Matter Fused 76 | . 1 7 20 8 . . 3 14 . . . . . . . . . . 1 . . . . 14 4 . 4 . Heat Flow Errors 36 | . 2 1 12 2 . . . 8 . . . . . . . . . . 1 1 . . . 7 2 . . . Energy Discharges 30 | . 3 5 13 2 . . . 4 . . . . . . . . . . . 2 . . . 1 . . . . Parts Rejected 3 | . . . 1 . . . . 2 . . . . . . . . . . . . . . . . . . . . Data Loss (minor) 35 | . 4 2 7 4 . . . 7 . . . . . . . . . . . . 1 . . 4 1 . 5 . Data Loss (major) 10 | . 1 1 3 . . . . 3 . . . . . . . . . . 1 . . . . . 1 . . . Misfires 7 | . . . 4 1 . . . 2 . . . . . . . . . . . . . . . . . . . . Alerts 2 | . . 1 . . . . . . . . . . . . . . . . . . . . . . . . 1 . Misdirections 2 | . . . . . . . . . . . . . . . . . . . . . . . . 1 . . 1 . Weapon Failures 11 | . . . 5 . . . . 1 . . . . . . . . . . . 1 . . . 3 . . 1 . Overload Shots 1 | . . . . . . . . 1 . . . . . . . . . . . . . . . . . . . . Overflow Damage 607 | . 3 . 86 . 21 1 . 54 . . 57 10 24 32 12 7 . 11 . 32 19 . 98 . . . 140 . Projectiles 180 | . . . 70 . 8 1 . 48 . . . . . . . 7 . 11 . 4 . . . . . . 31 . Explosions 128 | . 3 . 16 . 13 . . . . . . 10 24 . . . . . . . 19 . . . . . 43 . Melee 299 | . . . . . . . . 6 . . 57 . . 32 12 . . . . 28 . . 98 . . . 66 . Knockbacks 26 | . 3 4 2 . 1 . . . . . . . . . . 1 1 3 . 6 . . . 4 . . 1 . Impact 3 | . . . 2 . 1 . . . . . . . . . . . . . . . . . . . . . . . Kinetic 21 | . 3 4 . . . . . . . . . . . . . 1 1 3 . 4 . . . 4 . . 1 . Secondary 2 | . . . . . . . . . . . . . . . . . . . . 2 . . . . . . . . Self-Inflicted Damage 601 | 8 36 . . . 65 . . . . . 41 . 98 . . . . . 41 . . . 83 . . . 229 . Shots 11 | 1 1 . . . 2 . . . . . 1 . 3 . . . . . 1 . . . 1 . . . 1 . Rammed 39 | . 9 3 12 4 1 . . . . . . . . . . . . . . 1 . . . . . . 9 . Targets Rammed 42 | . 10 3 13 5 1 . . . . . . . . . . . . . . 1 . . . . . . 9 . Kicked . | . . . . . . . . . . . . . . . . . . . . . . . . . . . . . Crushed 3 | . 1 . 1 1 . . . . . . . . . . . . . . . . . . . . . . . . Highest Temperature 492 | 84 322 307 360 146 218 324 . 304 . . 31 171 329 . 156 . 318 388 276 492 . 140 192 416 110 437 . . Average Temperature 103 | 40 64 98 86 34 69 103 . 75 . . 13 84 198 . 66 . 186 114 76 142 . 68 91 127 57 187 . . Received Heat Transfer 3720 | . 132 267 324 87 720 30 . 318 . 24 93 21 135 . 27 . . 63 126 559 9 169 . 301 . 63 216 36 Effects 27 | . 1 . 1 . . 2 . . . . . . 2 . . . 1 1 . 7 . . . 8 . 4 . . Shutdowns 4 | . . . . . . . . . . . . . . . . . . . . 2 . . . 2 . . . . Energy Bleed 5 | . 1 . 1 . . . . . . . . . . . . . . . . 2 . . . 1 . . . . Interference 14 | . . . . . . 2 . . . . . . 2 . . . . . . 2 . . . 5 . 3 . . Matter Decay 2 | . . . . . . . . . . . . . . . . . 1 . . 1 . . . . . . . . Short Circuit 2 | . . . . . . . . . . . . . . . . . . 1 . . . . . . . 1 . . Siege Activations . | . . . . . . . . . . . . . . . . . . . . . . . . . . . . . Robots Corrupted 6 | . . . . . . . . . . . . . . . . . . . 1 1 . 1 3 . . . . . Combat Hostiles 6 | . . . . . . . . . . . . . . . . . . . 1 1 . 1 3 . . . . . Parts Fried 16 | 1 3 . . . . . . . . . . . . . . . . . 3 1 . . 8 . . . . . Impact Corruptions 3 | . . . . . . . . . . . . . . . . . . . . 3 . . . . . . . . Robots Melted 4 | . . . 2 . 1 . . . . . . . . . . . . . . . 1 . . . . . . . Combat Hostiles 1 | . . . . . 1 . . . . . . . . . . . . . . . . . . . . . . . Parts Melted 38 | . . 1 21 . 6 . . 3 . . . . . . . . . 1 . 2 . 1 . . . 2 1 . Heat Transferred 18192 | 50 50 555 9865 851 1308 850 . 1130 . . . . . . . . . . . 350 1201 500 100 50 . 481 851 . Parts Sabotaged 2 | . . . . . . . . . . . . . . . . . . . . . . . . 2 . . . . Parts Stolen . | . . . . . . . . . . . . . . . . . . . . . . . . . . . . . Parts Stripped . | . . . . . . . . . . . . . . . . . . . . . . . . . . . . . Power Chain Reactions 4 | 1 2 . . . . . . . . . . . . . . . . . . . . . . 1 . . . . Missiles Intercepted . | . . . . . . . . . . . . . . . . . . . . . . . . . . . . . Alert | -11 -10 -10 -9 -9 -8 -7 -7 -7 -6 -6 -5 -5 -5 -5 -4 -4 -4 -4 -4 -4 -4 -3 -3 -3 -3 -2 -2 -1 ------- Run | Scr Mat Min Mat Min Mat Fac Was Fac Fac DSF Fac Upp Upp Zhi Pro Fac Was Fac Upp Upp War Pro Res Arm Lab Res Tes Acc Peak Influence 1309 | 5 300 156 1309 645 644 447 149 148 51 40 477 . . . . 17 58 997 . . . . 211 239 . 72 422 267 Initial 510 | . 3 6 . 510 80 225 149 104 51 35 15 . . . . 12 5 40 . . . . 27 23 . . 40 229 Average 292 | . 127 76 478 412 369 329 149 69 51 34 200 . . . . 12 29 674 . . . . 100 88 . 21 273 235 Maximum Alert Level 4 | . 1 . 4 2 2 2 . . . . 2 . . . . . . 3 . . . . 1 1 . . 2 1 Low Security (%) 46 | 100 80 100 17 2 28 . 100 100 100 100 48 . . . . 100 100 10 . . . . 93 69 . 100 24 . Level 1 28 | . 19 . 41 34 16 79 . . . . 41 . . . . . . 9 . . . . 6 30 . . 71 100 Level 2 13 | . . . 16 63 55 20 . . . . 10 . . . . . . 12 . . . . . . . . 3 . Level 3 6 | . . . 13 . . . . . . . . . . . . . . 67 . . . . . . . . . . Level 4 4 | . . . 11 . . . . . . . . . . . . . . . . . . . . . . . . . Level 5 . | . . . . . . . . . . . . . . . . . . . . . . . . . . . . . High Security . | . . . . . . . . . . . . . . . . . . . . . . . . . . . . . Max Security . | . . . . . . . . . . . . . . . . . . . . . . . . . . . . . Sterilizations 1 | . . . 1 . . . . . . . . . . . . . . . . . . . . . . . . . Squads Dispatched 46 | . 4 1 9 . 2 1 . 2 . 1 1 . . . 1 . . 5 . . . . 4 3 . 2 9 1 Investigation 6 | . 2 1 1 . . . . . . . . . . . . . . . . . . . 1 . . 1 . . Extermination 5 | . . . . . . . . 1 . . . . . . . . . . . . . . . 2 . . 2 . Reinforcement 21 | . 2 . 4 . . 1 . 1 . 1 1 . . . . . . 1 . . . . 3 1 . 1 5 . Assault 9 | . . . 4 . 2 . . . . . . . . . 1 . . . . . . . . . . . 2 . Garrison 5 | . . . . . . . . . . . . . . . . . . 4 . . . . . . . . . 1 Intercept . | . . . . . . . . . . . . . . . . . . . . . . . . . . . . . Searches Triggered . | . . . . . . . . . . . . . . . . . . . . . . . . . . . . . Construction Impeded 2 | . . . 2 . . . . . . . . . . . . . . . . . . . . . . . . . Haulers Reinforced 1 | . . . . . . . . . . . . . . . . . . . . . . . . . . . 1 . Active Scanning Responses . | . . . . . . . . . . . . . . . . . . . . . . . . . . . . . Cargo Convoy Interrupts . | . . . . . . . . . . . . . . . . . . . . . . . . . . . . . Stealth | -11 -10 -10 -9 -9 -8 -7 -7 -7 -6 -6 -5 -5 -5 -5 -4 -4 -4 -4 -4 -4 -4 -3 -3 -3 -3 -2 -2 -1 --------- Run | Scr Mat Min Mat Min Mat Fac Was Fac Fac DSF Fac Upp Upp Zhi Pro Fac Was Fac Upp Upp War Pro Res Arm Lab Res Tes Acc Distress Signals 22 | . . 1 6 . 3 . . 1 . . . . . . . . . 1 . . 1 . . 1 . 6 2 . Communications Jammed 34 | . . . . . . . . . . . . . . . 1 . . 33 . . . . . . . . . . Distress Signals 34 | . . . . . . . . . . . . . . . 1 . . 33 . . . . . . . . . . Times Spotted 440 | . 31 8 85 15 29 12 6 21 . 4 17 9 16 . 8 . 3 18 15 27 34 11 9 17 . 8 31 6 Peak Tracking Total 20 | . 6 2 6 20 7 4 6 5 . 4 9 7 7 . 5 . 2 4 5 9 8 6 2 5 . 4 14 5 Tactical Retreats 37 | . . . 4 2 . 2 . . . 1 7 6 5 . . . . 1 2 3 . . 1 2 . . . 1 Traps | -11 -10 -10 -9 -9 -8 -7 -7 -7 -6 -6 -5 -5 -5 -5 -4 -4 -4 -4 -4 -4 -4 -3 -3 -3 -3 -2 -2 -1 ------- Run | Scr Mat Min Mat Min Mat Fac Was Fac Fac DSF Fac Upp Upp Zhi Pro Fac Was Fac Upp Upp War Pro Res Arm Lab Res Tes Acc Traps Triggered 15 | . 3 . 3 . . 1 . 3 . 2 . . . . . 1 . 1 . . . . . . . . 1 . Indirectly . | . . . . . . . . . . . . . . . . . . . . . . . . . . . . . Trap Hack Attempts . | . . . . . . . . . . . . . . . . . . . . . . . . . . . . . Triggered . | . . . . . . . . . . . . . . . . . . . . . . . . . . . . . Disarmed . | . . . . . . . . . . . . . . . . . . . . . . . . . . . . . Reprogrammed . | . . . . . . . . . . . . . . . . . . . . . . . . . . . . . Reused . | . . . . . . . . . . . . . . . . . . . . . . . . . . . . . Traps Extracted . | . . . . . . . . . . . . . . . . . . . . . . . . . . . . . Installed . | . . . . . . . . . . . . . . . . . . . . . . . . . . . . . Triggered 14 | . . . . . . . . . . . . 1 . . . . . . . . 13 . . . . . . . Machines | -11 -10 -10 -9 -9 -8 -7 -7 -7 -6 -6 -5 -5 -5 -5 -4 -4 -4 -4 -4 -4 -4 -3 -3 -3 -3 -2 -2 -1 ---------- Run | Scr Mat Min Mat Min Mat Fac Was Fac Fac DSF Fac Upp Upp Zhi Pro Fac Was Fac Upp Upp War Pro Res Arm Lab Res Tes Acc Machines Disabled 30 | . 1 . 4 3 2 . . . . . . . . . . . . 5 2 1 1 . 1 2 . . 8 . Max in Single Turn 2 | . 1 . 1 1 1 . . . . . . . . . . . . 1 1 1 1 . 1 1 . . 2 . Garrison Access 5 | . . . . . 1 1 . 1 . . . . . . . . . . . . . . . . . 1 1 . Machines Sabotaged . | . . . . . . . . . . . . . . . . . . . . . . . . . . . . . Overloaded Fab Kills . | . . . . . . . . . . . . . . . . . . . . . . . . . . . . . Hacking | -11 -10 -10 -9 -9 -8 -7 -7 -7 -6 -6 -5 -5 -5 -5 -4 -4 -4 -4 -4 -4 -4 -3 -3 -3 -3 -2 -2 -1 --------- Run | Scr Mat Min Mat Min Mat Fac Was Fac Fac DSF Fac Upp Upp Zhi Pro Fac Was Fac Upp Upp War Pro Res Arm Lab Res Tes Acc Machines Accessed 47 | . 3 1 8 . 2 2 . 4 1 . 3 1 1 3 . . . 4 1 . 1 . 2 2 . . 7 1 Terminals 32 | . 3 . 7 . 1 1 . 3 1 . 3 . . . . . . 3 1 . . . 1 2 . . 5 1 Fabricators 1 | . . . . . . . . . . . . . . . . . . . . . . . 1 . . . . . Repair Stations 2 | . . . . . . . . . . . . . . . . . . 1 . . . . . . . . 1 . Recycling Units 1 | . . . 1 . . . . . . . . . . . . . . . . . . . . . . . . . Scanalyzers . | . . . . . . . . . . . . . . . . . . . . . . . . . . . . . Garrison Access 4 | . . . . . 1 1 . 1 . . . . . . . . . . . . . . . . . . 1 . Total Hacks 100 | . 8 1 15 . 5 3 . 6 1 . 7 1 1 13 . . . 9 4 . 1 . 7 2 . . 15 1 Successful 62 | . 4 1 9 . 2 2 . 3 1 . 4 1 1 13 . . . 4 4 . 1 . 3 1 . . 7 1 Failed 38 | . 4 . 6 . 3 1 . 3 . . 3 . . . . . . 5 . . . . 4 1 . . 8 . Catastrophic 4 | . 1 . . . . . . 1 . . 1 . . . . . . . . . . . . 1 . . . . Database Lockouts . | . . . . . . . . . . . . . . . . . . . . . . . . . . . . . Manual 18 | . 4 . 7 . 1 . . 1 . . 3 . . . . . . . . . . . 1 . . . 1 . Terminals 67 | . 8 . 14 . 3 2 . 4 1 . 7 . . . . . . 6 4 . . . 5 2 . . 10 1 Fabricators 2 | . . . . . . . . . . . . . . . . . . . . . . . 2 . . . . . Repair Stations 5 | . . . . . . . . . . . . . . . . . . 3 . . . . . . . . 2 . Recycling Units 1 | . . . 1 . . . . . . . . . . . . . . . . . . . . . . . . . Scanalyzers . | . . . . . . . . . . . . . . . . . . . . . . . . . . . . . Garrison Access 8 | . . . . . 2 1 . 2 . . . . . . . . . . . . . . . . . . 3 . Terminal Hacks 52 | . 4 1 8 . 2 1 . 1 1 . 4 1 1 13 . . . 3 4 . 1 . 1 1 . . 4 1 Record 10 | . . . 1 . . . . . . . . . . 5 . . . . 4 . . . . . . . . . Robot Analysis 7 | . 2 . . . . . . . . . 1 . . 4 . . . . . . . . . . . . . . Prototype ID Bank 8 | . . . 1 . 1 . . . . . . . . 4 . . . . . . . . . . . . 2 . Open Door 6 | . . 1 . . . . . . . . . 1 1 . . . . . . . 1 . . 1 . . . 1 Open DSF 2 | . . . . . . 1 . . 1 . . . . . . . . . . . . . . . . . . . Branch Access Points 4 | . . . 1 . . . . . . . 1 . . . . . . 1 . . . . 1 . . . . . Machine Index 1 | . . . . . . . . . . . . . . . . . . 1 . . . . . . . . . . Fabricator Index 1 | . . . . . . . . 1 . . . . . . . . . . . . . . . . . . . . Alert Level 4 | . 1 . 1 . 1 . . . . . . . . . . . . 1 . . . . . . . . . . Unreport Threat 2 | . . . 2 . . . . . . . . . . . . . . . . . . . . . . . . . Locate Traps 2 | . . . 1 . . . . . . . 1 . . . . . . . . . . . . . . . . . Recall Reinforcements 1 | . . . . . . . . . . . 1 . . . . . . . . . . . . . . . . . Registered Prototypes 2 | . 1 . . . . . . . . . . . . . . . . . . . . . . . . . 1 . Zone Layout 1 | . . . 1 . . . . . . . . . . . . . . . . . . . . . . . . . Protovariant Controls 1 | . . . . . . . . . . . . . . . . . . . . . . . . . . . 1 . Fabricator Hacks 1 | . . . . . . . . . . . . . . . . . . . . . . . 1 . . . . . Network Status 1 | . . . . . . . . . . . . . . . . . . . . . . . 1 . . . . . Repair Station Hacks 3 | . . . . . . . . . . . . . . . . . . 1 . . . . . . . . 2 . Scan Component 2 | . . . . . . . . . . . . . . . . . . 1 . . . . . . . . 1 . Repair 1 | . . . . . . . . . . . . . . . . . . . . . . . . . . . 1 . Recycling Unit Hacks . | . . . . . . . . . . . . . . . . . . . . . . . . . . . . . Scanalyzer . | . . . . . . . . . . . . . . . . . . . . . . . . . . . . . Garrison Access Hacks 3 | . . . . . . 1 . 1 . . . . . . . . . . . . . . . . . . 1 . Seal Access 3 | . . . . . . 1 . 1 . . . . . . . . . . . . . . . . . . 1 . Unauthorized Hacks 3 | . . . 1 . . . . 1 . . . . . . . . . . . . . . 1 . . . . . Terminals 1 | . . . . . . . . 1 . . . . . . . . . . . . . . . . . . . . Assimilate 1 | . . . . . . . . 1 . . . . . . . . . . . . . . . . . . . . Fabricators 1 | . . . . . . . . . . . . . . . . . . . . . . . 1 . . . . . Fabnet 1 | . . . . . . . . . . . . . . . . . . . . . . . 1 . . . . . Repair Stations . | . . . . . . . . . . . . . . . . . . . . . . . . . . . . . Recycling Units 1 | . . . 1 . . . . . . . . . . . . . . . . . . . . . . . . . Mask 1 | . . . 1 . . . . . . . . . . . . . . . . . . . . . . . . . Scanalyzers . | . . . . . . . . . . . . . . . . . . . . . . . . . . . . . Garrison Access . | . . . . . . . . . . . . . . . . . . . . . . . . . . . . . Data Cores Recovered 2 | . . . . . . . . 1 . . . . . . . . . . . . . . . . . . 1 . Used 2 | . . . . . . . . 1 . . . . . . . . . . . . . . . . . . 1 . Hacking Detections 28 | . 2 . 5 . 2 . . 3 . . 2 . . . . . . 3 . . . . 2 2 . . 6 1 Full Trace Events 2 | . . . . . 1 . . . . . . . . . . . . . . . . . 1 . . . . . Feedback Events . | . . . . . . . . . . . . . . . . . . . . . . . . . . . . . Feedback Blocked . | . . . . . . . . . . . . . . . . . . . . . . . . . . . . . Robot Schematics Acquired 1 | . . . . . . . . . . . . . . . . . . . . . . . . . . . 1 . Robots Built . | . . . . . . . . . . . . . . . . . . . . . . . . . . . . . Authchips . | . . . . . . . . . . . . . . . . . . . . . . . . . . . . . Time . | . . . . . . . . . . . . . . . . . . . . . . . . . . . . . Total Robot Build Rating . | . . . . . . . . . . . . . . . . . . . . . . . . . . . . . Part Schematics Acquired 5 | . . . . . . . . . . . . . . . . . . . . . . . . . . . 5 . Parts Built . | . . . . . . . . . . . . . . . . . . . . . . . . . . . . . Authchips . | . . . . . . . . . . . . . . . . . . . . . . . . . . . . . Time . | . . . . . . . . . . . . . . . . . . . . . . . . . . . . . Total Part Build Rating . | . . . . . . . . . . . . . . . . . . . . . . . . . . . . . Parts Repaired 1 | . . . . . . . . . . . . . . . . . . . . . . . . . . . 1 . Time 24 | . . . . . . . . . . . . . . . . . . . . . . . . . . . 24 . Parts Recycled . | . . . . . . . . . . . . . . . . . . . . . . . . . . . . . Recycled Matter . | . . . . . . . . . . . . . . . . . . . . . . . . . . . . . Retrieved Matter . | . . . . . . . . . . . . . . . . . . . . . . . . . . . . . Retrieved Components . | . . . . . . . . . . . . . . . . . . . . . . . . . . . . . Parts Scanalyzed . | . . . . . . . . . . . . . . . . . . . . . . . . . . . . . Part Schematics Acquired . | . . . . . . . . . . . . . . . . . . . . . . . . . . . . . Parts Damaged . | . . . . . . . . . . . . . . . . . . . . . . . . . . . . . Bothacking | -11 -10 -10 -9 -9 -8 -7 -7 -7 -6 -6 -5 -5 -5 -5 -4 -4 -4 -4 -4 -4 -4 -3 -3 -3 -3 -2 -2 -1 ------------ Run | Scr Mat Min Mat Min Mat Fac Was Fac Fac DSF Fac Upp Upp Zhi Pro Fac Was Fac Upp Upp War Pro Res Arm Lab Res Tes Acc Used RIF Installer . | . . . . . . . . . . . . . . . . . . . . . . . . . . . . . Robots Hacked 6 | . . . . . . . . . . . . . . . . . . . . . . . . . . 3 3 . Non-combat . | . . . . . . . . . . . . . . . . . . . . . . . . . . . . . Combat 6 | . . . . . . . . . . . . . . . . . . . . . . . . . . 3 3 . Robot Hacks Applied . | . . . . . . . . . . . . . . . . . . . . . . . . . . . . . Relay Couplers Released 9 | . . . . . 1 1 . . . . . . . . . . . . . . . . . . . 7 . . Machine Destruction 5 | . . . . . 1 1 . . . . . . . . . . . . . . . . . . . 3 . . Programmers 4 | . . . . . . . . . . . . . . . . . . . . . . . . . . 4 . . Fabnet Peak Effective % 3 | . . . . . . . . . . . . . . . . . . . . . . . . . . 3 3 1 Autooverrided 6 | . . . . . . . . . . . . . . . . . . . . . . . . . . 3 3 . Robots Rewired 6 | . . . . . . . . . . . . . . . . . . . 4 . . . . 2 . . . . Allies Hacked . | . . . . . . . . . . . . . . . . . . . . . . . . . . . . . Hacks Repelled 1 | . . . . . . . . . . . . . . . . . . 1 . . . . . . . . . . Allies | -11 -10 -10 -9 -9 -8 -7 -7 -7 -6 -6 -5 -5 -5 -5 -4 -4 -4 -4 -4 -4 -4 -3 -3 -3 -3 -2 -2 -1 -------- Run | Scr Mat Min Mat Min Mat Fac Was Fac Fac DSF Fac Upp Upp Zhi Pro Fac Was Fac Upp Upp War Pro Res Arm Lab Res Tes Acc Total Allies 36 | . . . . 1 . . . 1 . . . . . . . . 19 . 4 . . . . 2 . 3 3 3 Largest Group 19 | . . . . 1 . . . 1 . . . . . . . . 19 16 4 . . . . 2 . 1 1 3 Highest-Rated Group 702 | . . . . 31 . . . 26 . . . . . . . . 702 627 143 . . . . 96 . 82 58 374 Highest-Rated Ally 131 | . . . . 31 . . . 26 . . . . . . . . 50 50 38 . . . . 48 . 82 58 131 Total Orders 1 | . . . . . . . . . . . . . . . . . . . . 1 . . . . . . . . EXPLORE 1 | . . . . . . . . . . . . . . . . . . . . 1 . . . . . . . . Ally Attacks 278 | . . . . 3 . . . . . . . . . . . . 88 150 15 . . . . 4 . 5 9 4 Total Damage 7987 | . . . . 43 . . . . . . . . . . . . 3333 3767 337 . . . . 88 . 100 319 . Kills 35 | . . . . 2 . . . . . . . . . . . . 6 23 4 . . . . . . . . . Allies Corrupted 1 | . . . . . . . . . . . . . . . . . . 1 . . . . . . . . . . Allies Melted 1 | . . . . . . . . . . . . . . . . . . . . . 1 . . . . . . . Intel | -11 -10 -10 -9 -9 -8 -7 -7 -7 -6 -6 -5 -5 -5 -5 -4 -4 -4 -4 -4 -4 -4 -3 -3 -3 -3 -2 -2 -1 ------- Run | Scr Mat Min Mat Min Mat Fac Was Fac Fac DSF Fac Upp Upp Zhi Pro Fac Was Fac Upp Upp War Pro Res Arm Lab Res Tes Acc Robot Analysis Total 7 | . 2 . . . . . . . . . 1 . . 4 . . . . . . . . . . . . . . Derelict Logs Recovered 6 | . . 1 . 1 . . . . . . . 1 1 . 1 . . . . 1 . . . . . . . . Drone Launches 1 | . . . . . . . . . . . . . . . . . . . . 1 . . . . . . . . Drone Recoveries 1 | . . . . . . . . . . . . . . . . . . . . 1 . . . . . . . . Exploration | -11 -10 -10 -9 -9 -8 -7 -7 -7 -6 -6 -5 -5 -5 -5 -4 -4 -4 -4 -4 -4 -4 -3 -3 -3 -3 -2 -2 -1 ------------- Run | Scr Mat Min Mat Min Mat Fac Was Fac Fac DSF Fac Upp Upp Zhi Pro Fac Was Fac Upp Upp War Pro Res Arm Lab Res Tes Acc Turns Passed 21212 | 98 1651 826 6460 1264 548 315 106 1465 10 46 602 331 426 100 157 78 211 495 476 630 743 417 491 909 265 1198 770 124 Spaces Moved 13368 | 46 887 478 1298 676 225 388 246 906 16 59 700 508 606 163 325 151 349 706 415 323 565 282 301 286 33 1423 827 180 Core 65 | 2 . . . . 16 16 . 30 . . . . . . . . . . 1 . . . . . . . . . Treads 4645 | 44 887 478 1298 676 209 . . 15 . . . . . . . . . . 70 323 274 . 144 119 33 70 5 . Legs 1986 | . . . . . . . . 5 . . . . . . . . . 535 262 . 291 282 157 162 . 269 23 . Wheels 605 | . . . . . . . . 605 . . . . . . . . . . . . . . . . . . . . Hover 3822 | . . . . . . 261 . . . . 292 508 606 163 325 151 349 44 . . . . . . . 144 799 180 Flight 2245 | . . . . . . 111 246 251 16 59 408 . . . . . . 127 82 . . . . 5 . 940 . . Fastest Speed 35 | 50 160 152 152 155 50 40 35 35 65 65 47 47 47 41 41 41 41 41 47 118 118 118 121 121 156 58 49 49 Average Speed 97 | 155 160 153 154 155 152 59 35 115 65 65 57 47 47 44 41 41 41 46 85 118 118 130 121 203 156 73 53 55 Slowest Speed 900 | 160 160 160 155 155 450 120 35 450 65 65 65 47 47 47 41 41 41 47 900 118 118 176 121 235 156 156 58 107 Overloaded Moves . | . . . . . . . . . . . . . . . . . . . . . . . . . . . . . Propulsion Burnouts . | . . . . . . . . . . . . . . . . . . . . . . . . . . . . . Robots Hopped 14 | . . . . . . . . 1 . . 3 . . . . . . . . . . . . . . 10 . . Cave-ins Triggered . | . . . . . . . . . . . . . . . . . . . . . . . . . . . . . Teleports 1 | . . . . . . . . . . . . . . . . . . . . . . . . 1 . . . . Exploration Rate (%) 47 | 5 98 99 98 99 31 8 88 17 1 67 18 67 77 60 60 5 94 19 57 49 68 38 7 18 6 46 64 7 Regions Visited 28 Branch Regions 13 Pre-discovered Areas 8 | . . 1 . 1 . . . . . . . . 1 3 . . . . 1 1 . . . . . . . . Known Exits Taken 5 | . . . 1 . . . . . 1 . 1 . . . . . . 1 . . . . 1 . . . . . Unknown Exits Taken 18 | 1 1 1 . 1 1 . . 1 . . . 1 1 1 1 . . . 1 1 1 1 . 1 1 1 1 . Scrap Searched 11 | . . 1 . 1 . . . . . . . 2 2 . . . . . 3 1 . 1 . . . . . . Spaces Dug 46 | . . . . . . . . . . . 4 . 1 . 1 . . . . . 1 . 1 4 . 3 27 4 Terrain Destroyed 545 | 2 8 . 81 . 57 . . 3 . . 27 26 85 . 18 . 1 11 26 7 16 52 16 35 . 4 66 4 Melee 18 | . . . . . . . . . . . 4 . 1 . 1 . . . . . 1 . 1 . . 3 3 4 Projectile 92 | . . . 7 . 4 . . 3 . . . . 2 . 3 . 1 11 . 7 . . . 28 . 1 25 . AOE 435 | 2 8 . 74 . 53 . . . . . 23 26 82 . 14 . . . 26 . 15 52 15 7 . . 38 . Terrain Rammed . | . . . . . . . . . . . . . . . . . . . . . . . . . . . . . Walls Destroyed . | . . . . . . . . . . . . . . . . . . . . . . . . . . . . . Machines Disabled . | . . . . . . . . . . . . . . . . . . . . . . . . . . . . . Actions | -11 -10 -10 -9 -9 -8 -7 -7 -7 -6 -6 -5 -5 -5 -5 -4 -4 -4 -4 -4 -4 -4 -3 -3 -3 -3 -2 -2 -1 --------- Run | Scr Mat Min Mat Min Mat Fac Was Fac Fac DSF Fac Upp Upp Zhi Pro Fac Was Fac Upp Upp War Pro Res Arm Lab Res Tes Acc Total 20022 | 61 1015 522 5251 860 349 441 269 1245 15 65 871 594 723 178 336 167 410 837 476 477 639 306 377 532 247 1548 1019 192 Wait 5255 | . 21 2 3597 157 42 14 13 236 . 2 140 81 93 2 3 4 50 90 12 69 51 3 26 157 215 94 79 2 Move 13317 | 45 886 477 1297 675 224 388 245 903 15 58 693 507 605 162 324 151 348 705 414 322 564 281 300 285 32 1406 826 179 Hop 10 | . . . . . . . . 1 . . 3 . . . . . . . . . . . . . . 6 . . Pick Up 70 | 5 7 3 18 2 9 1 3 3 . . 5 . . 1 . 2 1 1 . 2 1 . 2 1 . . 3 . Fast Attach 120 | 6 6 1 11 . 1 10 . 15 . . 2 . . 4 . 3 2 4 2 6 7 . 4 6 . 16 11 3 Attach 30 | . 2 . . 2 7 4 . 5 . . 3 . . 1 . . . 1 . 1 . . 2 1 . . 1 . Detach 16 | . 1 . . . . 2 3 5 . . 1 . . . . . . . . 1 1 . 1 . . 1 . . Swap 86 | 1 6 2 34 1 14 . . 3 . 1 6 1 2 2 1 1 . 1 1 1 . . . 2 . 2 4 . Drop 132 | . 12 6 34 2 7 2 5 11 . . 3 . 1 . . 4 3 7 . 5 11 . 1 1 . 10 7 . Fire 809 | 4 64 28 247 16 35 20 . 55 . . 3 5 21 . 4 2 6 23 31 60 3 22 36 65 . 10 47 2 Melee 107 | . . . . . 9 . . 8 . . 12 . 1 6 4 . . 3 6 9 1 . 5 2 . 3 32 6 Ram 9 | . . . . . . . . . . . . . . . . . . . . . . . . . . . 9 . Kick . | . . . . . . . . . . . . . . . . . . . . . . . . . . . . . Crush 33 | . 10 3 13 5 1 . . . . . . . . . . . . . . 1 . . . . . . . . Escape Stasis 6 | . . . . . . . . . . 4 . . . . . . . 2 . . . . . . . . . . Rewire 22 | . . . . . . . . . . . . . . . . . . . 10 . . . . 12 . . . . Trap . | . . . . . . . . . . . . . . . . . . . . . . . . . . . . . Miscellaneous . | . . . . . . . . . . . . . . . . . . . . . . . . . . . . . Route ------- -11/Scrapyard -10/Materials (discovered 4 exits: *Mat x3 / *Min) -10/Mines (discovered 2 exits: *Mat x2) -9/Materials (discovered 5 exits: *Mat x3 / *Min x2) -9/Mines (discovered 3 exits: *Mat x2 / [*Exi]) -8/Materials -7/Factory -7/Waste -7/Factory (discovered 2 exits: *Fac / [*Sto]) -6/Factory -6/DSF -5/Factory (discovered 4 exits: *Upp x2 / Ext x2) -5/Upper Caves -5/Upper Caves (discovered 2 exits: [*Fac] / *Zhi) -5/Zhirov -4/Proximity Caves -4/Factory -4/Waste -4/Factory (discovered 3 exits: *Res / *Upp x2) -4/Upper Caves -4/Upper Caves -4/Warlord -3/Proximity Caves -3/Research (discovered 3 exits: *Arm / Qua x2) -3/Armory -3/Lab -2/Research -2/Testing -1/Access (discovered 2 exits: *Sur / Com) To Epsilon Eridani History --------- Turn | Location | Event 51 | -11/Scrapyard | Discovered new exit (range 14) 99 | -11/Scrapyard | Entered Materials 309 | -10/Materials | Build established: Mutant 424 | -10/Materials | Discovered new exit (range 4) 872 | -10/Materials | Discovered new exit (range 9) 1063 | -10/Materials | Discovered new exit (range 9) 1409 | -10/Materials | Discovered new exit (range 13) 1750 | -10/Materials | Entered Mines 1790 | -10/Mines | Discovered new exit (range 12) 1822 | -10/Mines | Core integrity fell below 50% 1887 | -10/Mines | Met a Derelict shopkeep closing up shop 2112 | -10/Mines | Discovered new exit (range 5) 2118 | -10/Mines | Learned location of Storage (-7) 2484 | -10/Mines | Learned Materials terminal intel 2576 | -10/Mines | Entered Materials 2576 | -9/Materials | Evolved 2 slots: Propulsion x1, Utility x1 2577 | -9/Materials | Loaded intel: 12 terminal locations 3077 | -9/Materials | Discovered new exit (range 6) 3343 | -9/Materials | Discovered new exit (range 4) 3905 | -9/Materials | Discovered new exit (range 15) 4210 | -9/Materials | Identified exit to Mines 4213 | -9/Materials | Discovered new exit (range 15) 4635 | -9/Materials | Discovered new exit (range 8) 6976 | -9/Materials | First assault squad dispatched 8681 | -9/Materials | Sterilization system engaged 8681 | -9/Materials | Non-combat units ordered to evacuate 8781 | -9/Materials | Combat units ordered to evacuate 8981 | -9/Materials | Ambient heat levels rising (+10) 9036 | -9/Materials | Entered Mines 9037 | -9/Mines | Assembled infested the area 9042 | -9/Mines | Assisted by a Guerilla fighting off Assembled 9063 | -9/Mines | Received a Mining Laser from a helpful Derelict 9317 | -9/Mines | Discovered new exit (range 5) 9337 | -9/Mines | Discovered new exit (range 11) 9837 | -9/Mines | Learned location of Zion (-7) 9847 | -9/Mines | Received a Rocket Launcher from a helpful Derelict 10016 | -9/Mines | A weapon hastily lodged in a ceiling crevice suddenly fell to the ground 10191 | -9/Mines | Deemed a non-threat by the Exiles lab entrance 10191 | -9/Mines | Discovered new exit (range 5) 10300 | -9/Mines | Entered Materials 10300 | -8/Materials | Evolved 2 slots: Utility x2 10631 | -8/Materials | Build established: Scavenger-Mutant 10700 | -8/Materials | First assault squad dispatched 10820 | -8/Materials | Core integrity fell below 50% 10839 | -8/Materials | Released all parts (2) 10840 | -8/Materials | Core integrity fell below 20% 10846 | -8/Materials | Discovered new exit (range 3) 10848 | -8/Materials | Entered Factory 10848 | -7/Factory | Evolved 2 slots: Propulsion x1, Utility x1 10850 | -7/Factory | Identified exit to DSF 10862 | -7/Factory | Found Scrap Engine 10866 | -7/Factory | Lost 13 parts (1p5n5u2w) 11058 | -7/Factory | Build established: Mutant 11122 | -7/Factory | Lost 3 parts (2n1w) 11163 | -7/Factory | Sucked down chute 11163 | -7/Factory | Entered Waste 11178 | -7/Waste | EMP discharged 11181 | -7/Waste | Found Corrupted Imp. Powered Armor 11207 | -7/Waste | Spotted C-40 Crusher 11213 | -7/Waste | Spotted C-40 Crusher 11217 | -7/Waste | Spotted C-40 Crusher 11218 | -7/Waste | Spotted C-40 Crusher 11228 | -7/Waste | Spotted C-40 Crusher 11233 | -7/Waste | Spotted C-40 Crusher 11240 | -7/Waste | Discovered new exit (range 16) 11268 | -7/Waste | Found Corrupted Prototype Launcher 11269 | -7/Waste | Entered Factory 11414 | -7/Factory | Core integrity fell below 50% 11438 | -7/Factory | Lost 3 parts (2n1u) 11868 | -7/Factory | Discovered new exit (range 8) 12247 | -7/Factory | Discovered new exit (range 8) 12264 | -7/Factory | Build established: Hacker-Mutant 12425 | -7/Factory | System corruption reached 10% 12651 | -7/Factory | Lost 3 parts (1n2u) 12731 | -7/Factory | Identified Mni. Smartbomb Launcher 12734 | -7/Factory | Entered another Factory area 12734 | -6/Factory | Evolved 2 slots: Power x1, Propulsion x1 12744 | -6/Factory | Identified exit to DSF 12744 | -6/Factory | Entered DSF 12766 | -6/DSF | Additional patrols routed to DSF 12780 | -6/DSF | Discovered new exit (range 16) 12790 | -6/DSF | Entered Factory 12790 | -5/Factory | Evolved 2 slots: Propulsion x1, Utility x1 12990 | -5/Factory | Identified exit to Upper Caves 12990 | -5/Factory | Identified exit to Extension 13194 | -5/Factory | Spotted B-75 Beast 13392 | -5/Factory | Entered Upper Caves 13440 | -5/Upper Caves | Attracted the attention of an 0b10 checkpoint 13589 | -5/Upper Caves | Build established: Hacker-Construct 13602 | -5/Upper Caves | Spotted B-75 Beast 13664 | -5/Upper Caves | Discovered new exit (range 13) 13675 | -5/Upper Caves | Encountered a Warlord checkpoint 13723 | -5/Upper Caves | Entered another Upper Caves area 13736 | -5/Upper Caves | Discovered new exit (range 5) 13749 | -5/Upper Caves | Spotted B-75 Beast 13971 | -5/Upper Caves | Attracted the attention of an 0b10 checkpoint 14053 | -5/Upper Caves | Encountered a Warlord checkpoint 14120 | -5/Upper Caves | Discovered new exit (range 4) 14149 | -5/Upper Caves | Entered Zhirov 14149 | -5/Zhirov | Discovered new exit (range 3) 14158 | -5/Zhirov | Met Zhirov 14170 | -5/Zhirov | Learned location of Quarantine (-3) 14170 | -5/Zhirov | Learned location of Testing (-2) 14170 | -5/Zhirov | Learned location of Command (-1) 14173 | -5/Zhirov | Zhirov requested help retrieving the SGEMP Prototype 14181 | -5/Zhirov | Found Alien Artifact 14181 | -5/Zhirov | Identified Integrated Reactor 14181 | -5/Zhirov | Installed Integrated Reactor, increased core energy generation (+10) 14189 | -5/Zhirov | Found Alien Artifact 14249 | -5/Zhirov | Entered Proximity Caves 14272 | -4/Proximity Caves | Attracted the attention of an 0b10 checkpoint 14314 | -4/Proximity Caves | Spotted B-86 Titan 14364 | -4/Proximity Caves | Attracted the attention of an 0b10 outpost 14378 | -4/Proximity Caves | Learned Research security intel 14400 | -4/Proximity Caves | Discovered new exit (range 15) 14406 | -4/Proximity Caves | Entered Factory 14406 | -4/Factory | Evolved 2 slots: Utility x1, Weapon x1 14435 | -4/Factory | Found Prototype Slashing Weapon 14435 | -4/Factory | Identified Molecular Scythe 14438 | -4/Factory | Found Molecular Scythe 14439 | -4/Factory | Found Molecular Scythe 14453 | -4/Factory | Spotted B-86 Titan 14484 | -4/Factory | Sucked down chute 14484 | -4/Factory | Entered Waste 14496 | -4/Waste | Spotted C-40 Crusher 14504 | -4/Waste | Warlord forces began an assault 14558 | -4/Waste | Spotted C-40 Crusher 14564 | -4/Waste | Spotted C-40 Crusher 14568 | -4/Waste | Spotted C-40 Crusher 14578 | -4/Waste | Allies destroyed C-40 Crusher 14579 | -4/Waste | Allies destroyed C-40 Crusher 14586 | -4/Waste | Spotted C-40 Crusher 14595 | -4/Waste | Allies destroyed C-40 Crusher 14619 | -4/Waste | Spotted C-40 Crusher 14622 | -4/Waste | Allies destroyed C-40 Crusher 14637 | -4/Waste | Discovered new exit (range 16) 14695 | -4/Waste | Entered Factory 14695 | -4/Factory | Accompanied by 16 allies 14703 | -4/Factory | Identified exit to Upper Caves 14739 | -4/Factory | Garrison activated, responded to threat 14785 | -4/Factory | Garrison activated, responded to threat 14842 | -4/Factory | Found Prototype Processor 14842 | -4/Factory | Identified Exp. Melee Analysis Suite 15065 | -4/Factory | Discovered new exit (range 5) 15190 | -4/Factory | Entered Upper Caves 15198 | -4/Upper Caves | Attacked by a delusional Derelict stockpiling Unaware 15269 | -4/Upper Caves | Attracted the attention of an 0b10 base 15347 | -4/Upper Caves | Learned Extension emergency access door positions 15659 | -4/Upper Caves | Discovered new exit (range 6) 15666 | -4/Upper Caves | Entered another Upper Caves area 15806 | -4/Upper Caves | Found Imp. Powered Armor 16003 | -4/Upper Caves | Acquired the password to a Derelict Tinkerer's latest research 16142 | -4/Upper Caves | Caught by Unaware searching for contraband prototypes 16151 | -4/Upper Caves | Attracted the attention of an 0b10 checkpoint 16264 | -4/Upper Caves | Lost 8 parts (2p4u2w) 16268 | -4/Upper Caves | Destroyed 9 combat bots 16271 | -4/Upper Caves | Discovered new exit (range 6) 16296 | -4/Upper Caves | Entered Warlord 16337 | -4/Warlord | System corruption cleaned by Quarantine Array 16526 | -4/Warlord | Met Warlord 16551 | -4/Warlord | Warlord's base attacked by MAIN.C 16570 | -4/Warlord | Found Prototype Device 16570 | -4/Warlord | Identified Exp. Phase Shifter 16576 | -4/Warlord | Found Prototype Processor 16576 | -4/Warlord | Identified Exp. Core Analyzer 16579 | -4/Warlord | Found Prototype Device 16579 | -4/Warlord | Identified Exp. Focal Shield 16600 | -4/Warlord | Build established: Hacker-Mutant 16895 | -4/Warlord | Spotted B-86 Titan 16901 | -4/Warlord | Warlord forces counterattacked 16902 | -4/Warlord | Spotted B-90 Cyclops 16904 | -4/Warlord | Spotted Executioner 16927 | -4/Warlord | Spotted Striker 16952 | -4/Warlord | Spotted Striker 17005 | -4/Warlord | Spotted Striker 17024 | -4/Warlord | Discovered new exit (range 15) 17039 | -4/Warlord | Entered Proximity Caves 17104 | -3/Proximity Caves | Destroyed 8 combat bots 17163 | -3/Proximity Caves | Attracted the attention of an 0b10 checkpoint 17199 | -3/Proximity Caves | Build established: Hacker-Construct 17358 | -3/Proximity Caves | Discovered new exit (range 8) 17456 | -3/Proximity Caves | Entered Research 17456 | -3/Research | Evolved 2 slots: Utility x2 17539 | -3/Research | Identified exit to Armory 17539 | -3/Research | Identified exit to Quarantine 17947 | -3/Research | Entered Armory 18041 | -3/Armory | System corruption reached 10% 18079 | -3/Armory | Lost 5 parts (1n2u2w) 18354 | -3/Armory | Build established: Mutant 18684 | -3/Armory | Lost 5 parts (4u1w) 18702 | -3/Armory | Identified Transdimensional Reconstructor 18702 | -3/Armory | Warped through subspace to slip node 18702 | -3/Armory | Discovered new exit (range 1) 18856 | -3/Armory | Entered Lab 18856 | -3/Lab | Discovered new exit (range 9) 18877 | -3/Lab | Unable to decrypt terminal 19121 | -3/Lab | Entered Research 19121 | -2/Research | Warlord forces began assault on 0b10 19121 | -2/Research | Spotted B-90 Cyclops 19121 | -2/Research | Evolved 2 slots: Propulsion x2 19143 | -2/Research | Local machine network offline 19652 | -2/Research | Borebot progress halted 19849 | -2/Research | Found Prototype Hackware 19849 | -2/Research | Identified Exp. Hacking Suite 19880 | -2/Research | Borebot progress halted 19915 | -2/Research | Met up with Warlord 20144 | -2/Research | Spotted Striker 20221 | -2/Research | Borebot progress halted 20248 | -2/Research | Discovered new exit (range 7) 20319 | -2/Research | Entered Testing 20332 | -2/Testing | Build established: Hacker-Construct 20360 | -2/Testing | Protovariant out of control (PH-PGJ4B6MM9C) 20381 | -2/Testing | Repaired Adv. Cloaking Device 20432 | -2/Testing | Protovariant out of control (PY-KNIW99YV0N) 20432 | -2/Testing | Unleashed a protovariant (PY-KNIW99YV0N) 20486 | -2/Testing | Found Prototype Launcher 20497 | -2/Testing | Spotted Striker 20497 | -2/Testing | Spotted Striker 20498 | -2/Testing | Identified Point Singularity Launcher 20502 | -2/Testing | Spotted Alpha 7 20503 | -2/Testing | Destroyed Striker 20522 | -2/Testing | Destroyed Striker 20564 | -2/Testing | Destroyed Alpha 7 20584 | -2/Testing | Stole the SGEMP Prototype 20776 | -2/Testing | System corruption reached 10% 21060 | -2/Testing | Lost 7 parts (1p4u2w) 21074 | -2/Testing | Found Prototype Processor 21074 | -2/Testing | Identified Exp. Armor Integrity Analyzer 21076 | -2/Testing | Discovered new exit (range 16) 21076 | -2/Testing | Found Exp. Armor Integrity Analyzer 21089 | -2/Testing | Entered Access 21089 | -1/Access | Evolved 2 slots: Utility x2 21090 | -1/Access | Loaded intel: 108 machine locations 21090 | -1/Access | Loaded intel: 65 trap records 21090 | -1/Access | Identified exit to Surface 21090 | -1/Access | Discovered exit to Surface (range 108) 21090 | -1/Access | Identified exit to Command 21090 | -1/Access | Discovered exit to Command (range 227) 21090 | -1/Access | Delivered the SGEMP Prototype to Zhirov 21090 | -1/Access | Zhirov transferred Access data 21136 | -1/Access | Garrison activated, responded to threat 21138 | -1/Access | Spotted B-99 Colossus 21144 | -1/Access | Zhirov warped through subspace 21213 | *** | Escaped! Last Messages --------------- 21156_ Slug penetrates W-44 Eye. 21156_ W-44 Eye destroyed. 21156_ Penetrated by Slug. 21156_ Slug penetrates Wall. 21160_ Penetrated by Slug. 21160_ Slug penetrates Wall. 21161_ Arm. Scrap Engine constructs Hpw. Charged Gamma Construct/G. 21161_ Acquired 8 matter. 21185_ Phase Shifter destroyed. 21185_ Penetrated by Slug. 21188_ Phase Shifter destroyed. 21191_ Slug penetrates Wall. 21194_ Scrap Engine modifies Hovering Antigrav-Cooled Exoskeleton: Heat -3, Time/Move +58 Renamed Hovering Gravjet-Antigrav Exoskeleton. 21205_ Connecting with Terminal... 21205_ Current location identified: Access >>Open(Door) Sealed Barrier opened. 21208_ The Access Shell folds into the floor. Map ----- +----------------------------------------------------+ | ####################### ####################### | | ####################### ####################### | | ####################### ####################### | | ####################### ^^^####################### | | ####################### ^^^####################### | | ####################### ####################### | | ####################### ####################### | | ####################### ####################### | | ####################### ####################### | | ####################### ####################### | | ######## ### #################### | | ######## ### #################### | | ######## ### #################### | | ######## "### #################### | | ######## ""### #################### | | ######## ""### #################### | | ######## ""### #################### | | ######## ""###""""""""""#################### | | ######## T"###""""""""""#################### | | ######## ""###""""""""""#################### | | ######## ""###""""""""""#################### | | ######## ""### #################### | | ######## ""### #################### | | ######## "### #################### | | ######## ### "" #################### | | ######## ### "@ #################### | | #########+####### #################### | | ####### ###### #################### | | = ###### ######## # | | ###### ######## # | | ####### ] ##### ####### # " | | ######## #######"" ########""" # " | | ########### #######"" ########"R # " | | ########### #######"" ########""" # " | | ########### #######T ######## "" # " | | ########### #######"" ######## # | | ########### #######"" ######## # | | ####### #######"" ############+######+ | | | | = | | ##########+###########################+####### | | # ##### ##################### ### | | # ##### ##################### ^ ### | | # ##### "##################### ### | | + ##### ""##################### ### | | # ##### ""##################### * + | | # ##### ""##################### ^ ### | | # + ""##################### ^^ ### | | # ##### T"##################### # | | # ##### ""############################### | +----------------------------------------------------+ Best States ------------- Heat Dissipation 239 Energy Generation 78 Energy Capacity 1767 Matter Stores 300 Matter Capacity 450 Sight Range 20 Terrain Scan Range 18 Terrain Scan Density 10 Jamming Range 16 Cloak Strength 6 Base Temperature (-) 200 Corruption Containment 12 Armor Coverage 600 Resistance: KI 30 Power Shielding 90 Weapon Shielding 66 Phase Shifting 10 Evasion (%) 73 Core Analysis 8 Armor Integrity Analysis 50 Recoil Reduction 5 Energy Filtering 50 Particle Charging 15 Offensive Hacking 38 Defensive Hacking 10 Item Schematics ----------------- Adv. Gravity Neutralizer | -2/Testing | Archive Exp. Optical Array | -2/Testing | Archive Enh. Biometal Leg | -2/Testing | Archive Cld. Gravmag System | -2/Testing | Archive Exp. Matter Compressor | -2/Testing | Archive Robot Schematics ------------------ A-15 Conveyor | -2/Testing | Archive Fabricated ------------ Nothing Alien Tech Used ----------------- Integrated Reactor Transdimensional Reconstructor Achievements -------------- Special Delivery Challenges ------------ None Game ------ Seed VortexCannonBoregun Manual? 0 Play Time 03:05:02 Cumulative 526.5 hours Start 2022.09.22 @ 11:20:50 End 2022.09.23 @ 10:14:59 Sessions 1 Manual Loads 0 Difficulty Rogue Special Mode None Game No. 587 Rogue 586 Adventurer 0 Explorer 1 Win Type 0 Total 20 Types 14/0/3/3/0/0/0/0/0 Lore% 81 Gallery% 91 Achievement% 73 Wizard Run 0 Options --------- ASCII 0 Keyboard 1 Movement Vi Keybinds 0 Fullscreen 1 Font 18/SmallcapsGlow Map View 76x50 Tactical HUD 1 Map Filters NONE Filters NONE Steam 1 RUN: 509869c8-9622-4bf4-b44d-dc286e9f8d6e